[Event "*** Titled Tuesday Blitz"]
[Site "Chess.com"]
[Date "2020.05.12"]
[Round "9"]
[White "Duong57"]
[Black "djano"]
[Result "1/2-1/2"]
[WhiteElo "2279"]
[BlackElo "2445"]
[TimeControl "180+1"]
[EndTime "11:44:33 PDT"]
[Termination "Game drawn - insufficient material"]

1. d4 {[%clk 0:03:00.9]} 1... Nf6 {[%clk 0:02:59.4]} 2. c4 {[%clk 0:03:01]} 2...
c6 {[%clk 0:02:59.3]} 3. Nc3 {[%clk 0:02:58.3]} 3... d5 {[%clk 0:02:59.7]} 4.
Nf3 {[%clk 0:02:58.6]} 4... a6 {[%clk 0:02:59.5]} 5. a4 {[%clk 0:02:56.2]} 5...
Bg4 {[%clk 0:02:48.6]} 6. Ne5 {[%clk 0:02:53.1]} 6... Bf5 {[%clk 0:02:48.8]} 7.
cxd5 {[%clk 0:02:51.9]} 7... cxd5 {[%clk 0:02:48.6]} 8. Qb3 {[%clk 0:02:51.4]}
8... Ra7 {[%clk 0:02:49]} 9. Bg5 {[%clk 0:02:50.2]} 9... e6 {[%clk 0:02:48.9]}
10. e3 {[%clk 0:02:17.1]} 10... Be7 {[%clk 0:02:48.6]} 11. Be2 {[%clk
0:02:14.6]} 11... O-O {[%clk 0:02:48.7]} 12. O-O {[%clk 0:02:14.3]} 12... Nbd7
{[%clk 0:02:48.9]} 13. f4 {[%clk 0:02:11.9]} 13... Ne8 {[%clk 0:02:39.9]} 14.
Bxe7 {[%clk 0:02:02.3]} 14... Qxe7 {[%clk 0:02:39.7]} 15. a5 {[%clk 0:02:00.1]}
15... Nd6 {[%clk 0:02:35.2]} 16. g4 {[%clk 0:01:29.1]} 16... Be4 {[%clk
0:02:30.9]} 17. f5 {[%clk 0:01:25.5]} 17... exf5 {[%clk 0:02:22.3]} 18. Nxd5
{[%clk 0:01:24.6]} 18... Qe6 {[%clk 0:02:05.3]} 19. gxf5 {[%clk 0:01:19.8]}
19... Qxd5 {[%clk 0:01:35]} 20. Qxd5 {[%clk 0:01:17.6]} 20... Bxd5 {[%clk
0:01:35.9]} 21. Nxd7 {[%clk 0:01:17.6]} 21... Re8 {[%clk 0:01:33.3]} 22. Bf3
{[%clk 0:00:58.9]} 22... Bxf3 {[%clk 0:01:25.6]} 23. Rxf3 {[%clk 0:00:58.1]}
23... b5 {[%clk 0:01:26.2]} 24. Nc5 {[%clk 0:00:56.4]} 24... Nc4 {[%clk
0:01:24.2]} 25. b3 {[%clk 0:00:47.3]} 25... Nxe3 {[%clk 0:01:15.7]} 26. Re1
{[%clk 0:00:32.9]} 26... Rae7 {[%clk 0:01:15.6]} 27. Nxa6 {[%clk 0:00:30.7]}
27... Nxf5 {[%clk 0:01:15.8]} 28. Rxe7 {[%clk 0:00:29.8]} 28... Nxe7 {[%clk
0:01:16.6]} 29. Nc7 {[%clk 0:00:29.8]} 29... Rc8 {[%clk 0:01:14.7]} 30. Nxb5
{[%clk 0:00:29.1]} 30... Nd5 {[%clk 0:01:11.1]} 31. Nd6 {[%clk 0:00:28.5]} 31...
Ra8 {[%clk 0:01:06.1]} 32. Rxf7 {[%clk 0:00:17.4]} 32... Rxa5 {[%clk 0:01:01.8]}
33. Rb7 {[%clk 0:00:17.4]} 33... h5 {[%clk 0:01:00.4]} 34. Nf5 {[%clk
0:00:17.1]} 34... Ra2 {[%clk 0:00:54.2]} 35. Rxg7+ {[%clk 0:00:15.7]} 35... Kf8
{[%clk 0:00:54.7]} 36. Rd7 {[%clk 0:00:14.3]} 36... Nf4 {[%clk 0:00:54.4]} 37.
b4 {[%clk 0:00:12.9]} 37... Nh3+ {[%clk 0:00:52.1]} 38. Kf1 {[%clk 0:00:13.2]}
38... Rf2+ {[%clk 0:00:51.9]} 39. Ke1 {[%clk 0:00:13.7]} 39... Rxf5 {[%clk
0:00:52.8]} 40. Rh7 {[%clk 0:00:13.2]} 40... Kg8 {[%clk 0:00:52.2]} 41. Rd7
{[%clk 0:00:12.3]} 41... Nf4 {[%clk 0:00:51.2]} 42. Rc7 {[%clk 0:00:10.8]} 42...
Ne6 {[%clk 0:00:50.6]} 43. Rd7 {[%clk 0:00:10.3]} 43... Nf4 {[%clk 0:00:48]} 44.
Rc7 {[%clk 0:00:10.3]} 44... h4 {[%clk 0:00:46.6]} 45. Kd2 {[%clk 0:00:07.3]}
45... h3 {[%clk 0:00:46.1]} 46. Rc5 {[%clk 0:00:06.9]} 46... Rf6 {[%clk
0:00:42.5]} 47. b5 {[%clk 0:00:07]} 47... Rg6 {[%clk 0:00:41.7]} 48. Ke3 {[%clk
0:00:05.9]} 48... Ng2+ {[%clk 0:00:39.7]} 49. Kf2 {[%clk 0:00:05]} 49... Nf4
{[%clk 0:00:37.6]} 50. Kf3 {[%clk 0:00:04.6]} 50... Nd3 {[%clk 0:00:37.7]} 51.
Rh5 {[%clk 0:00:04.6]} 51... Ne1+ {[%clk 0:00:32.2]} 52. Ke2 {[%clk 0:00:04.9]}
52... Ng2 {[%clk 0:00:31.6]} 53. Kf3 {[%clk 0:00:03.7]} 53... Rf6+ {[%clk
0:00:30.6]} 54. Kg3 {[%clk 0:00:04]} 54... Nf4 {[%clk 0:00:29.9]} 55. Rg5+
{[%clk 0:00:04.2]} 55... Kf7 {[%clk 0:00:29.3]} 56. Rg4 {[%clk 0:00:04.7]} 56...
Ne2+ {[%clk 0:00:26.7]} 57. Kxh3 {[%clk 0:00:04.8]} 57... Ke6 {[%clk 0:00:27.2]}
58. Re4+ {[%clk 0:00:04.6]} 58... Kd5 {[%clk 0:00:26.6]} 59. Rxe2 {[%clk
0:00:05.5]} 59... Kxd4 {[%clk 0:00:25.4]} 60. Rb2 {[%clk 0:00:06.1]} 60... Kc3
{[%clk 0:00:25.1]} 61. Rb1 {[%clk 0:00:06.4]} 61... Kc2 {[%clk 0:00:25.6]} 62.
Re1 {[%clk 0:00:06.8]} 62... Rf5 {[%clk 0:00:21.9]} 63. Kg4 {[%clk 0:00:07]}
63... Rxb5 {[%clk 0:00:21.7]} 64. h4 {[%clk 0:00:07.7]} 64... Kd2 {[%clk
0:00:22.2]} 65. Re7 {[%clk 0:00:07.8]} 65... Rb4+ {[%clk 0:00:19.6]} 66. Kg5
{[%clk 0:00:07.8]} 66... Rb5+ {[%clk 0:00:20]} 67. Kg6 {[%clk 0:00:08.3]} 67...
Rb6+ {[%clk 0:00:20.4]} 68. Kg7 {[%clk 0:00:08.6]} 68... Rb5 {[%clk 0:00:19.7]}
69. h5 {[%clk 0:00:09]} 69... Rxh5 {[%clk 0:00:19.5]} 70. Rd7+ {[%clk
0:00:09.1]} 70... Ke3 {[%clk 0:00:18.4]} 71. Re7+ {[%clk 0:00:09.3]} 71... Kf4
{[%clk 0:00:18.7]} 72. Rf7+ {[%clk 0:00:09.7]} 72... Rf5 {[%clk 0:00:19.3]} 73.
Rxf5+ {[%clk 0:00:09.8]} 73... Kxf5 {[%clk 0:00:19.8]} 1/2-1/2

[Event "*** Titled Tuesday Blitz"]
[Site "Chess.com"]
[Date "2020.05.12"]
[Round "9"]
[White "m_ezat"]
[Black "ljuks68"]
[Result "0-1"]
[WhiteElo "2585"]
[BlackElo "2420"]
[TimeControl "180+1"]
[EndTime "11:44:35 PDT"]
[Termination "ljuks68 won by checkmate"]

1. d4 {[%clk 0:03:00.9]} 1... d5 {[%clk 0:02:53.6]} 2. c4 {[%clk 0:03:00.3]}
2... c6 {[%clk 0:02:53.5]} 3. Nc3 {[%clk 0:03:00.4]} 3... Nf6 {[%clk 0:02:53.7]}
4. cxd5 {[%clk 0:03:00.9]} 4... cxd5 {[%clk 0:02:53.8]} 5. Bf4 {[%clk
0:02:59.3]} 5... Nc6 {[%clk 0:02:54]} 6. e3 {[%clk 0:02:59.7]} 6... Bf5 {[%clk
0:02:49.2]} 7. Bb5 {[%clk 0:02:55.3]} 7... e6 {[%clk 0:02:44.2]} 8. Nf3 {[%clk
0:02:54.5]} 8... Nd7 {[%clk 0:02:41.4]} 9. Qa4 {[%clk 0:02:53.4]} 9... Rc8
{[%clk 0:02:39.5]} 10. O-O {[%clk 0:02:50.4]} 10... a6 {[%clk 0:02:35.9]} 11.
Bxc6 {[%clk 0:02:49.8]} 11... Rxc6 {[%clk 0:02:35.9]} 12. Rac1 {[%clk
0:02:45.2]} 12... Be7 {[%clk 0:02:25.3]} 13. Qb3 {[%clk 0:02:34.5]} 13... Qc8
{[%clk 0:02:13.9]} 14. Qd1 {[%clk 0:02:20.9]} 14... O-O {[%clk 0:02:04.8]} 15.
h3 {[%clk 0:02:17.1]} 15... b5 {[%clk 0:02:00.9]} 16. Qe2 {[%clk 0:02:00.4]}
16... Qb7 {[%clk 0:01:54.6]} 17. a3 {[%clk 0:01:20.5]} 17... Rfc8 {[%clk
0:01:48.9]} 18. Ne5 {[%clk 0:01:17.3]} 18... Nxe5 {[%clk 0:01:47.9]} 19. Bxe5
{[%clk 0:01:17.4]} 19... f6 {[%clk 0:01:38]} 20. Bf4 {[%clk 0:01:13.6]} 20...
Bxa3 {[%clk 0:01:31.5]} 21. bxa3 {[%clk 0:00:57.9]} 21... Rxc3 {[%clk
0:01:30.7]} 22. Rxc3 {[%clk 0:00:58.4]} 22... Rxc3 {[%clk 0:01:30.5]} 23. Qf3
{[%clk 0:00:45.1]} 23... Qc6 {[%clk 0:01:25.5]} 24. Qg3 {[%clk 0:00:33.8]} 24...
Kh8 {[%clk 0:01:07.9]} 25. Bd6 {[%clk 0:00:30.5]} 25... h6 {[%clk 0:00:52.5]}
26. Bf8 {[%clk 0:00:26.8]} 26... Qc7 {[%clk 0:00:51.6]} 27. Bd6 {[%clk
0:00:26.3]} 27... Qd7 {[%clk 0:00:48.6]} 28. Bc5 {[%clk 0:00:25.6]} 28... Qf7
{[%clk 0:00:44.5]} 29. Kh2 {[%clk 0:00:24.1]} 29... Qg6 {[%clk 0:00:43.2]} 30.
Qd6 {[%clk 0:00:24.2]} 30... Rc2 {[%clk 0:00:39.1]} 31. Qxa6 {[%clk 0:00:12]}
31... Bd3 {[%clk 0:00:38.9]} 32. Qc8+ {[%clk 0:00:09.9]} 32... Kh7 {[%clk
0:00:38]} 33. Rg1 {[%clk 0:00:09.7]} 33... Rxf2 {[%clk 0:00:25.5]} 34. Qxe6
{[%clk 0:00:09.7]} 34... Bf5 {[%clk 0:00:25.3]} 35. Qd6 {[%clk 0:00:09.7]} 35...
Re2 {[%clk 0:00:19.1]} 36. Qg3 {[%clk 0:00:10.2]} 36... Be4 {[%clk 0:00:19.2]}
37. Qxg6+ {[%clk 0:00:09.7]} 37... Kxg6 {[%clk 0:00:19.5]} 38. Kg3 {[%clk
0:00:09.3]} 38... Rxe3+ {[%clk 0:00:19]} 39. Kf2 {[%clk 0:00:10]} 39... Rb3
{[%clk 0:00:18.4]} 40. Re1 {[%clk 0:00:08.6]} 40... h5 {[%clk 0:00:17.5]} 41.
Re2 {[%clk 0:00:08.7]} 41... h4 {[%clk 0:00:17.4]} 42. Kg1 {[%clk 0:00:09.4]}
42... Kf5 {[%clk 0:00:16.6]} 43. Kf2 {[%clk 0:00:09.9]} 43... g5 {[%clk
0:00:16.4]} 44. Kg1 {[%clk 0:00:10.5]} 44... Ke6 {[%clk 0:00:16.6]} 45. Rf2
{[%clk 0:00:10.1]} 45... f5 {[%clk 0:00:16.3]} 46. Re2 {[%clk 0:00:10.4]} 46...
g4 {[%clk 0:00:16]} 47. Rf2 {[%clk 0:00:10.9]} 47... g3 {[%clk 0:00:15.6]} 48.
Rf1 {[%clk 0:00:09.5]} 48... Rb2 {[%clk 0:00:15.7]} 49. Re1 {[%clk 0:00:09.5]}
49... Rxg2+ {[%clk 0:00:15.3]} 50. Kf1 {[%clk 0:00:10.2]} 50... Rf2+ {[%clk
0:00:13.1]} 51. Kg1 {[%clk 0:00:09.7]} 51... Rh2 {[%clk 0:00:13]} 52. Kf1 {[%clk
0:00:09.1]} 52... f4 {[%clk 0:00:08.8]} 53. Bb6 {[%clk 0:00:06.7]} 53... f3
{[%clk 0:00:07.8]} 54. Rxe4+ {[%clk 0:00:06.5]} 54... dxe4 {[%clk 0:00:07.5]}
55. d5+ {[%clk 0:00:07.2]} 55... Kxd5 {[%clk 0:00:06.8]} 56. Bg1 {[%clk
0:00:08.1]} 56... Rh1 {[%clk 0:00:06.3]} 57. a4 {[%clk 0:00:07.4]} 57... f2
{[%clk 0:00:06.5]} 58. Ke2 {[%clk 0:00:07]} 58... Rxg1 {[%clk 0:00:07]} 59. axb5
{[%clk 0:00:07.7]} 59... f1=Q+ {[%clk 0:00:07.5]} 60. Ke3 {[%clk 0:00:08.4]}
60... Qd3+ {[%clk 0:00:07.4]} 61. Kf4 {[%clk 0:00:09]} 61... Rf1+ {[%clk
0:00:07.9]} 62. Kg5 {[%clk 0:00:09.9]} 62... e3 {[%clk 0:00:08.1]} 63. Kh5
{[%clk 0:00:10.3]} 63... Qf5+ {[%clk 0:00:08.4]} 64. Kxh4 {[%clk 0:00:11]} 64...
Rf4+ {[%clk 0:00:08.4]} 65. Kxg3 {[%clk 0:00:11.7]} 65... Qg5+ {[%clk
0:00:08.7]} 66. Kh2 {[%clk 0:00:11.5]} 66... Rf2+ {[%clk 0:00:08.8]} 67. Kh1
{[%clk 0:00:12.2]} 67... Qg2# {[%clk 0:00:09.1]} 0-1

[Event "*** Titled Tuesday Blitz"]
[Site "Chess.com"]
[Date "2020.05.12"]
[Round "9"]
[White "letantha"]
[Black "PowerThinking2650"]
[Result "1/2-1/2"]
[WhiteElo "2158"]
[BlackElo "2275"]
[TimeControl "180+1"]
[EndTime "11:44:42 PDT"]
[Termination "Game drawn - insufficient material"]

1. e4 {[%clk 0:03:00.9]} 1... e5 {[%clk 0:02:59.6]} 2. Nf3 {[%clk 0:03:00.6]}
2... Nc6 {[%clk 0:02:59.7]} 3. Bc4 {[%clk 0:03:00.6]} 3... Nf6 {[%clk
0:02:59.2]} 4. d3 {[%clk 0:02:59.9]} 4... h6 {[%clk 0:02:58.8]} 5. c3 {[%clk
0:02:54.2]} 5... d6 {[%clk 0:02:57.5]} 6. Bb3 {[%clk 0:02:54]} 6... g6 {[%clk
0:02:57.2]} 7. Nbd2 {[%clk 0:02:49.8]} 7... Bg7 {[%clk 0:02:55.7]} 8. O-O {[%clk
0:02:49.6]} 8... O-O {[%clk 0:02:55.7]} 9. Nc4 {[%clk 0:02:47.3]} 9... d5 {[%clk
0:02:44.4]} 10. Ncxe5 {[%clk 0:02:37.5]} 10... Nxe5 {[%clk 0:02:40.9]} 11. Nxe5
{[%clk 0:02:37.3]} 11... dxe4 {[%clk 0:02:40.2]} 12. Nxg6 {[%clk 0:02:27]} 12...
Re8 {[%clk 0:02:30.6]} 13. dxe4 {[%clk 0:02:15.1]} 13... Qxd1 {[%clk 0:02:23.2]}
14. Rxd1 {[%clk 0:02:14.9]} 14... Nxe4 {[%clk 0:02:19.8]} 15. f3 {[%clk
0:01:53.1]} 15... Nc5 {[%clk 0:02:16.9]} 16. Nf4 {[%clk 0:01:45.1]} 16... Nxb3
{[%clk 0:02:11.4]} 17. axb3 {[%clk 0:01:46]} 17... c6 {[%clk 0:02:08.5]} 18. Kf2
{[%clk 0:01:32.4]} 18... Bf5 {[%clk 0:02:03.6]} 19. b4 {[%clk 0:01:19.6]} 19...
a6 {[%clk 0:02:03]} 20. Be3 {[%clk 0:01:15.8]} 20... Rad8 {[%clk 0:01:55.2]} 21.
Bb6 {[%clk 0:01:13]} 21... Rxd1 {[%clk 0:01:42.9]} 22. Rxd1 {[%clk 0:01:13.9]}
22... Be5 {[%clk 0:01:42.1]} 23. Nh5 {[%clk 0:00:51]} 23... Bg6 {[%clk
0:01:33.9]} 24. Ng3 {[%clk 0:00:49.4]} 24... Bxg3+ {[%clk 0:01:19.3]} 25. hxg3
{[%clk 0:00:45.6]} 25... Bf5 {[%clk 0:01:13.7]} 26. g4 {[%clk 0:00:43.1]} 26...
Be6 {[%clk 0:01:12.9]} 27. Rh1 {[%clk 0:00:34.8]} 27... Kg7 {[%clk 0:01:11.1]}
28. Bd4+ {[%clk 0:00:34.1]} 28... Kg6 {[%clk 0:01:00.3]} 29. Kg3 {[%clk
0:00:23.6]} 29... f5 {[%clk 0:00:57.5]} 30. gxf5+ {[%clk 0:00:22]} 30... Bxf5
{[%clk 0:00:57.3]} 31. Kf2 {[%clk 0:00:20.4]} 31... h5 {[%clk 0:00:56.7]} 32.
Rh4 {[%clk 0:00:19.8]} 32... Bd3 {[%clk 0:00:52.9]} 33. Be3 {[%clk 0:00:18.4]}
33... Bf5 {[%clk 0:00:51.1]} 34. Rd4 {[%clk 0:00:18.5]} 34... Re7 {[%clk
0:00:48.5]} 35. Rd6+ {[%clk 0:00:17.2]} 35... Re6 {[%clk 0:00:45.7]} 36. Rd8
{[%clk 0:00:15.8]} 36... Kf7 {[%clk 0:00:41.9]} 37. Bd4 {[%clk 0:00:15.1]} 37...
Bd3 {[%clk 0:00:36.2]} 38. Be3 {[%clk 0:00:15.3]} 38... Bf5 {[%clk 0:00:32.8]}
39. Rh8 {[%clk 0:00:15.4]} 39... Kg6 {[%clk 0:00:31.1]} 40. Bd4 {[%clk
0:00:13.9]} 40... Re7 {[%clk 0:00:24.3]} 41. Rg8+ {[%clk 0:00:13.2]} 41... Kf7
{[%clk 0:00:22.3]} 42. Rg5 {[%clk 0:00:13.3]} 42... Bg6 {[%clk 0:00:20.6]} 43.
Be5 {[%clk 0:00:12.3]} 43... Rd7 {[%clk 0:00:18.7]} 44. Bd4 {[%clk 0:00:12.2]}
44... Re7 {[%clk 0:00:18.2]} 45. f4 {[%clk 0:00:12.3]} 45... Bd3 {[%clk
0:00:15.6]} 46. Be3 {[%clk 0:00:11.2]} 46... h4 {[%clk 0:00:15.9]} 47. Rh5
{[%clk 0:00:10]} 47... Rd7 {[%clk 0:00:15.6]} 48. Rxh4 {[%clk 0:00:09.1]} 48...
Be4 {[%clk 0:00:15.7]} 49. Bd4 {[%clk 0:00:08.7]} 49... b6 {[%clk 0:00:15.6]}
50. Rh6 {[%clk 0:00:08.5]} 50... c5 {[%clk 0:00:15.5]} 51. bxc5 {[%clk
0:00:08.4]} 51... bxc5 {[%clk 0:00:15.9]} 52. Bxc5 {[%clk 0:00:06.6]} 52... Rd1
{[%clk 0:00:14.6]} 53. b4 {[%clk 0:00:05.6]} 53... Bd3 {[%clk 0:00:13.7]} 54.
Bd4 {[%clk 0:00:05.6]} 54... Bc4 {[%clk 0:00:13.6]} 55. Kg3 {[%clk 0:00:05.7]}
55... Rd3+ {[%clk 0:00:12]} 56. Kh4 {[%clk 0:00:04.9]} 56... Bd5 {[%clk
0:00:12.9]} 57. Rh7+ {[%clk 0:00:05]} 57... Kg6 {[%clk 0:00:12.8]} 58. Rg7+
{[%clk 0:00:05.6]} 58... Kh6 {[%clk 0:00:13]} 59. g4 {[%clk 0:00:05.4]} 59...
Rxd4 {[%clk 0:00:13.3]} 60. g5+ {[%clk 0:00:05.6]} 60... Kxg7 {[%clk 0:00:12.9]}
61. cxd4 {[%clk 0:00:06.5]} 61... Kg6 {[%clk 0:00:12.4]} 62. Kg4 {[%clk
0:00:06.5]} 62... Be4 {[%clk 0:00:13.3]} 63. f5+ {[%clk 0:00:05.9]} 63... Bxf5+
{[%clk 0:00:13.4]} 64. Kf4 {[%clk 0:00:06.8]} 64... Be6 {[%clk 0:00:13.8]} 65.
Ke5 {[%clk 0:00:06.8]} 65... Bc4 {[%clk 0:00:13.6]} 66. d5 {[%clk 0:00:06.6]}
66... Kxg5 {[%clk 0:00:13.9]} 67. d6 {[%clk 0:00:07.1]} 67... Bb5 {[%clk
0:00:14.2]} 68. Ke6 {[%clk 0:00:07]} 68... Kf4 {[%clk 0:00:14.3]} 69. d7 {[%clk
0:00:07.2]} 69... Bxd7+ {[%clk 0:00:14]} 70. Kxd7 {[%clk 0:00:08.1]} 70... Ke5
{[%clk 0:00:14]} 71. Kc6 {[%clk 0:00:08.5]} 71... Kd4 {[%clk 0:00:11.3]} 72. Kb6
{[%clk 0:00:08.8]} 72... Kc4 {[%clk 0:00:11.7]} 73. Ka5 {[%clk 0:00:08.3]} 73...
Kb3 {[%clk 0:00:11.8]} 74. Kxa6 {[%clk 0:00:06.1]} 74... Kxb4 {[%clk 0:00:11.4]}
1/2-1/2

[Event "*** Titled Tuesday Blitz"]
[Site "Chess.com"]
[Date "2020.05.12"]
[Round "9"]
[White "GothamChess"]
[Black "heartofatiger"]
[Result "1-0"]
[WhiteElo "2607"]
[BlackElo "2462"]
[TimeControl "180+1"]
[EndTime "11:44:46 PDT"]
[Termination "GothamChess won by resignation"]

1. e4 {[%clk 0:03:00.9]} 1... Nf6 {[%clk 0:02:59.1]} 2. e5 {[%clk 0:03:00.7]}
2... Nd5 {[%clk 0:02:57.3]} 3. c4 {[%clk 0:03:01.1]} 3... Nb6 {[%clk 0:02:56.5]}
4. a4 {[%clk 0:03:01.7]} 4... d6 {[%clk 0:02:55]} 5. a5 {[%clk 0:03:00.7]} 5...
N6d7 {[%clk 0:02:55.1]} 6. e6 {[%clk 0:03:01.3]} 6... fxe6 {[%clk 0:02:54.1]} 7.
d4 {[%clk 0:03:01.8]} 7... Nf6 {[%clk 0:02:53.4]} 8. Bd3 {[%clk 0:03:01.6]} 8...
e5 {[%clk 0:02:50.7]} 9. dxe5 {[%clk 0:02:50]} 9... dxe5 {[%clk 0:02:49.4]} 10.
Nc3 {[%clk 0:02:50.6]} 10... Nc6 {[%clk 0:02:48]} 11. Bg5 {[%clk 0:02:44]} 11...
e6 {[%clk 0:02:34.4]} 12. Nf3 {[%clk 0:02:32.5]} 12... Bb4 {[%clk 0:02:32.4]}
13. Qc2 {[%clk 0:02:09.8]} 13... Qe7 {[%clk 0:02:01.4]} 14. a6 {[%clk
0:02:03.7]} 14... O-O {[%clk 0:01:45.1]} 15. Bxh7+ {[%clk 0:02:01.3]} 15... Kh8
{[%clk 0:01:44.7]} 16. O-O {[%clk 0:01:57.1]} 16... Nd4 {[%clk 0:01:23.1]} 17.
Nxd4 {[%clk 0:01:39.3]} 17... exd4 {[%clk 0:01:22.9]} 18. Ne2 {[%clk 0:01:10.5]}
18... Qc5 {[%clk 0:01:21.5]} 19. Bxf6 {[%clk 0:00:59.2]} 19... gxf6 {[%clk
0:01:17.5]} 20. Be4 {[%clk 0:00:55.7]} 20... Rb8 {[%clk 0:01:06.5]} 21. Qd3
{[%clk 0:00:50.7]} 21... e5 {[%clk 0:00:55.6]} 22. axb7 {[%clk 0:00:51]} 22...
Be6 {[%clk 0:00:53.2]} 23. Ra6 {[%clk 0:00:46.5]} 23... Qe7 {[%clk 0:00:44.9]}
24. Ng3 {[%clk 0:00:37.2]} 24... Bd6 {[%clk 0:00:39.5]} 25. Rxa7 {[%clk
0:00:32]} 25... Rg8 {[%clk 0:00:33.5]} 26. Ra8 {[%clk 0:00:30.3]} 26... c5
{[%clk 0:00:32.5]} 27. Rfa1 {[%clk 0:00:26]} 27... Qg7 {[%clk 0:00:30]} 28. Rxb8
{[%clk 0:00:23.5]} 28... Bxb8 {[%clk 0:00:29.2]} 29. Bf5 {[%clk 0:00:18.2]}
29... Bf7 {[%clk 0:00:15.9]} 30. Qe4 {[%clk 0:00:14]} 30... Qh6 {[%clk
0:00:12.2]} 31. h3 {[%clk 0:00:10.8]} 31... Bxc4 {[%clk 0:00:11]} 32. Ra8 {[%clk
0:00:04.5]} 32... Qf4 {[%clk 0:00:09.7]} 33. Qxf4 {[%clk 0:00:02.7]} 33... exf4
{[%clk 0:00:09.2]} 34. Ne4 {[%clk 0:00:03.1]} 34... f3 {[%clk 0:00:08.9]} 35. g4
{[%clk 0:00:03.5]} 35... Bd5 {[%clk 0:00:09.1]} 36. Nxf6 {[%clk 0:00:03]} 36...
Bxb7 {[%clk 0:00:07.2]} 37. Ra5 {[%clk 0:00:01.4]} 37... Rf8 {[%clk 0:00:06.7]}
38. Nd7 {[%clk 0:00:01.8]} 38... Rd8 {[%clk 0:00:06.2]} 39. Nxb8 {[%clk
0:00:02]} 39... Rxb8 {[%clk 0:00:06.1]} 40. Rb5 {[%clk 0:00:02.7]} 40... c4
{[%clk 0:00:05.2]} 41. Be4 {[%clk 0:00:02.3]} 41... c3 {[%clk 0:00:05.6]} 42.
bxc3 {[%clk 0:00:01.9]} 42... dxc3 {[%clk 0:00:05.8]} 43. Bxb7 {[%clk
0:00:02.5]} 43... c2 {[%clk 0:00:05.4]} 44. Rc5 {[%clk 0:00:02.9]} 44... Rxb7
{[%clk 0:00:05.2]} 45. Rxc2 {[%clk 0:00:03.4]} 45... Kg7 {[%clk 0:00:04.4]} 46.
Kh2 {[%clk 0:00:03.8]} 46... Kg6 {[%clk 0:00:04.7]} 47. Kg3 {[%clk 0:00:04.3]}
47... Rb3 {[%clk 0:00:04.8]} 48. Rc4 {[%clk 0:00:04.2]} 48... Ra3 {[%clk
0:00:04]} 49. Rf4 {[%clk 0:00:04.7]} 49... Kg5 {[%clk 0:00:03.7]} 50. Rxf3
{[%clk 0:00:05.6]} 50... Ra1 {[%clk 0:00:02.9]} 51. h4+ {[%clk 0:00:06.1]} 51...
Kg6 {[%clk 0:00:03.3]} 52. h5+ {[%clk 0:00:06.5]} 52... Kg5 {[%clk 0:00:03.7]}
53. Rf5+ {[%clk 0:00:07]} 53... Kh6 {[%clk 0:00:04.5]} 54. Rb5 {[%clk
0:00:07.6]} 54... Rg1+ {[%clk 0:00:03.7]} 55. Kf3 {[%clk 0:00:08]} 55... Rf1
{[%clk 0:00:03.9]} 56. Rb6+ {[%clk 0:00:08.4]} 56... Kg7 {[%clk 0:00:04.2]} 57.
g5 {[%clk 0:00:09]} 57... Kf7 {[%clk 0:00:04.6]} 58. Rb7+ {[%clk 0:00:08.3]}
58... Ke6 {[%clk 0:00:04.2]} 59. h6 {[%clk 0:00:08.9]} 59... Rh1 {[%clk
0:00:03.6]} 60. Kg2 {[%clk 0:00:08.3]} 60... Rh5 {[%clk 0:00:02.6]} 61. f4
{[%clk 0:00:08.9]} 61... Kf5 {[%clk 0:00:02.8]} 62. Kg3 {[%clk 0:00:09.2]} 62...
Rh1 {[%clk 0:00:02.3]} 63. Rf7+ {[%clk 0:00:08.3]} 63... Ke4 {[%clk 0:00:02]}
64. h7 {[%clk 0:00:06.8]} 64... Rg1+ {[%clk 0:00:02.9]} 65. Kh2 {[%clk
0:00:06.9]} 65... Rg2+ {[%clk 0:00:01.6]} 66. Kxg2 {[%clk 0:00:06.4]} 66... Ke3
{[%clk 0:00:02.3]} 67. h8=Q {[%clk 0:00:06.2]} 67... Ke4 {[%clk 0:00:02.6]} 68.
Qe5+ {[%clk 0:00:06.5]} 68... Kd3 {[%clk 0:00:03.3]} 69. Rd7+ {[%clk 0:00:06.7]}
69... Kc4 {[%clk 0:00:03.2]} 70. Qe6+ {[%clk 0:00:06.8]} 70... Kc5 {[%clk
0:00:02.9]} 71. g6 {[%clk 0:00:07.7]} 71... Kb4 {[%clk 0:00:02.7]} 72. g7 {[%clk
0:00:08.6]} 72... Kc5 {[%clk 0:00:03.4]} 73. f5 {[%clk 0:00:09.5]} 73... Kb5
{[%clk 0:00:03.8]} 74. f6 {[%clk 0:00:10.4]} 74... Kc5 {[%clk 0:00:04.6]} 75. f7
{[%clk 0:00:11.3]} 75... Kb5 {[%clk 0:00:05.5]} 76. f8=N {[%clk 0:00:11.3]}
76... Kc5 {[%clk 0:00:06.4]} 77. g8=N {[%clk 0:00:11.5]} 77... Kb4 {[%clk
0:00:07.3]} 78. Qc6 {[%clk 0:00:10.9]} 1-0